{"text_format":"3","workbook":"xlsx","n_sheets":3,"sheets":["Päevaplaan","Sündmuste plaanur","Ajavahemikud"],"not_rendered":{"defined_names":21},"read":"whole","date_system":"1900"}

{"sheet":"Päevaplaan","index":0,"n_rows":76,"n_cols":13,"rows_kept":76,"merged":[[0,1,0,2],[1,1,5,2],[2,12,4,12],[3,7,4,7],[5,12,7,12],[6,1,8,2],[8,12,10,12],[9,7,10,7],[10,1,10,2],[11,12,13,12],[14,12,16,12],[15,7,16,7],[17,12,19,12],[18,1,18,2],[20,12,22,12],[21,7,22,7],[23,12,25,12],[24,1,24,2],[25,1,25,2],[26,7,27,7],[26,12,28,12],[29,12,31,12],[31,7,32,7],[32,12,34,12]]}
[null,"Päevaplaan"]
[null,{"$f":"IFERROR(DAY(DateVal),\"\")","v":23},null,null,"Kellaaeg",{"$f":"IFERROR(UPPER(TEXT(DATE(AruandeAasta,MonthNumber,AruandePäev),\"[$-et-EE]d\\. mmmm yyyy\")),\"\")","v":"23. JUUNI 2022"},null,"NÄDALA ÜLEVAADE",{"$nulls":3},"MÄRKMED/ÜLESANDED"]
[{"$nulls":4},"Kellaaeg","Kirjeldus",null,{"$f":"IFERROR(TEXT(DATEVALUE(DateVal)+1,\"dddd\"),\"\")","v":"reede"},{"$f":"IFERROR(INDEX(SündmustePlaanur[],MATCH($H$6&\"|\"&ROW(A1),SündmustePlaanur[AINUVÄÄRTUS (ARVUTATUD)],0),2),\"\")","v":""},{"$f":"IFERROR(INDEX(SündmustePlaanur[],MATCH($H$6&\"|\"&ROW(A1),SündmustePlaanur[AINUVÄÄRTUS (ARVUTATUD)],0),3),\"\")","v":""},null,null,"Too riided keemilisest puhastusest"]
[{"$nulls":4},{"$f":"Ajavahemikud!E3","v":"06:00:00"},{"$f":"IFERROR(INDEX(SündmustePlaanur[],MATCH(DATEVALUE(DateVal)&Päevaplaan[[#This Row],[Kellaaeg]],LookUpDateAndTime,0),3),\"\")","v":"Ärkamine"},null,{"$f":"IFERROR(TEXT(DATEVALUE(DateVal)+1,\"d\"),\"\")","v":"24"},{"$f":"IFERROR(INDEX(SündmustePlaanur[],MATCH($H$6&\"|\"&ROW(A2),SündmustePlaanur[AINUVÄÄRTUS (ARVUTATUD)],0),2),\"\")","v":"06:30:00"},{"$f":"IFERROR(INDEX(SündmustePlaanur[],MATCH($H$6&\"|\"&ROW(A2),SündmustePlaanur[AINUVÄÄRTUS (ARVUTATUD)],0),3),\"\")","v":"Hommikusöök"}]
[{"$nulls":4},{"$f":"Ajavahemikud!E4","v":"06:15:00"},{"$f":"IFERROR(INDEX(SündmustePlaanur[],MATCH(DATEVALUE(DateVal)&Päevaplaan[[#This Row],[Kellaaeg]],LookUpDateAndTime,0),3),\"\")","v":""},null,null,{"$f":"IFERROR(INDEX(SündmustePlaanur[],MATCH($H$6&\"|\"&ROW(A3),SündmustePlaanur[AINUVÄÄRTUS (ARVUTATUD)],0),2),\"\")","v":""},{"$f":"IFERROR(INDEX(SündmustePlaanur[],MATCH($H$6&\"|\"&ROW(A3),SündmustePlaanur[AINUVÄÄRTUS (ARVUTATUD)],0),3),\"\")","v":""}]
[{"$nulls":4},{"$f":"Ajavahemikud!E5","v":"06:30:00"},{"$f":"IFERROR(INDEX(SündmustePlaanur[],MATCH(DATEVALUE(DateVal)&Päevaplaan[[#This Row],[Kellaaeg]],LookUpDateAndTime,0),3),\"\")","v":"Dušš"},null,{"$f":"IFERROR(DateVal+1,\"\")","v":"2022-06-24"},{"$f":"IFERROR(INDEX(SündmustePlaanur[],MATCH($H$6&\"|\"&ROW(A4),SündmustePlaanur[AINUVÄÄRTUS (ARVUTATUD)],0),2),\"\")","v":""},{"$f":"IFERROR(INDEX(SündmustePlaanur[],MATCH($H$6&\"|\"&ROW(A4),SündmustePlaanur[AINUVÄÄRTUS (ARVUTATUD)],0),3),\"\")","v":""},null,null,"Helista teleteenuste operaatorile"]
[null,{"$f":"IFERROR(TEXT(DateVal,\"dddd\"),\"\")","v":"neljapäev"},null,null,{"$f":"Ajavahemikud!E6","v":"06:45:00"},{"$f":"IFERROR(INDEX(SündmustePlaanur[],MATCH(DATEVALUE(DateVal)&Päevaplaan[[#This Row],[Kellaaeg]],LookUpDateAndTime,0),3),\"\")","v":""},null,null,{"$f":"IFERROR(INDEX(SündmustePlaanur[],MATCH($H$6&\"|\"&ROW(A5),SündmustePlaanur[AINUVÄÄRTUS (ARVUTATUD)],0),2),\"\")","v":""},{"$f":"IFERROR(INDEX(SündmustePlaanur[],MATCH($H$6&\"|\"&ROW(A5),SündmustePlaanur[AINUVÄÄRTUS (ARVUTATUD)],0),3),\"\")","v":""}]
[{"$nulls":4},{"$f":"Ajavahemikud!E7","v":"07:00:00"},{"$f":"IFERROR(INDEX(SündmustePlaanur[],MATCH(DATEVALUE(DateVal)&Päevaplaan[[#This Row],[Kellaaeg]],LookUpDateAndTime,0),3),\"\")","v":""},null,null,{"$f":"IFERROR(INDEX(SündmustePlaanur[],MATCH($H$6&\"|\"&ROW(A6),SündmustePlaanur[AINUVÄÄRTUS (ARVUTATUD)],0),2),\"\")","v":""},{"$f":"IFERROR(INDEX(SündmustePlaanur[],MATCH($H$6&\"|\"&ROW(A6),SündmustePlaanur[AINUVÄÄRTUS (ARVUTATUD)],0),3),\"\")","v":""}]
[{"$nulls":4},{"$f":"Ajavahemikud!E8","v":"07:15:00"},{"$f":"IFERROR(INDEX(SündmustePlaanur[],MATCH(DATEVALUE(DateVal)&Päevaplaan[[#This Row],[Kellaaeg]],LookUpDateAndTime,0),3),\"\")","v":""},null,{"$f":"IFERROR(TEXT(DATEVALUE(DateVal)+2,\"dddd\"),\"\")","v":"laupäev"},{"$f":"IFERROR(INDEX(SündmustePlaanur[],MATCH($H$12&\"|\"&ROW(A1),SündmustePlaanur[AINUVÄÄRTUS (ARVUTATUD)],0),2),\"\")","v":""},{"$f":"IFERROR(INDEX(SündmustePlaanur[],MATCH($H$12&\"|\"&ROW(A1),SündmustePlaanur[AINUVÄÄRTUS (ARVUTATUD)],0),3),\"\")","v":""}]
[{"$nulls":4},{"$f":"Ajavahemikud!E9","v":"07:30:00"},{"$f":"IFERROR(INDEX(SündmustePlaanur[],MATCH(DATEVALUE(DateVal)&Päevaplaan[[#This Row],[Kellaaeg]],LookUpDateAndTime,0),3),\"\")","v":"Tööleminek"},null,{"$f":"IFERROR(TEXT(DATEVALUE(DateVal)+2,\"d\"),\"\")","v":"25"},{"$f":"IFERROR(INDEX(SündmustePlaanur[],MATCH($H$12&\"|\"&ROW(A2),SündmustePlaanur[AINUVÄÄRTUS (ARVUTATUD)],0),2),\"\")","v":""},{"$f":"IFERROR(INDEX(SündmustePlaanur[],MATCH($H$12&\"|\"&ROW(A2),SündmustePlaanur[AINUVÄÄRTUS (ARVUTATUD)],0),3),\"\")","v":""}]
[null,"KUVA AJAKAVA",null,null,{"$f":"Ajavahemikud!E10","v":"07:45:00"},{"$f":"IFERROR(INDEX(SündmustePlaanur[],MATCH(DATEVALUE(DateVal)&Päevaplaan[[#This Row],[Kellaaeg]],LookUpDateAndTime,0),3),\"\")","v":""},null,null,{"$f":"IFERROR(INDEX(SündmustePlaanur[],MATCH($H$12&\"|\"&ROW(A3),SündmustePlaanur[AINUVÄÄRTUS (ARVUTATUD)],0),2),\"\")","v":""},{"$f":"IFERROR(INDEX(SündmustePlaanur[],MATCH($H$12&\"|\"&ROW(A3),SündmustePlaanur[AINUVÄÄRTUS (ARVUTATUD)],0),3),\"\")","v":""}]
[{"$nulls":4},{"$f":"Ajavahemikud!E11","v":"08:00:00"},{"$f":"IFERROR(INDEX(SündmustePlaanur[],MATCH(DATEVALUE(DateVal)&Päevaplaan[[#This Row],[Kellaaeg]],LookUpDateAndTime,0),3),\"\")","v":"Vahetuse algus"},null,{"$f":"IFERROR(DateVal+2,\"\")","v":"2022-06-25"},{"$f":"IFERROR(INDEX(SündmustePlaanur[],MATCH($H$12&\"|\"&ROW(A4),SündmustePlaanur[AINUVÄÄRTUS (ARVUTATUD)],0),2),\"\")","v":""},{"$f":"IFERROR(INDEX(SündmustePlaanur[],MATCH($H$12&\"|\"&ROW(A4),SündmustePlaanur[AINUVÄÄRTUS (ARVUTATUD)],0),3),\"\")","v":""}]
[null,"Aasta",null,null,{"$f":"Ajavahemikud!E12","v":"08:15:00"},{"$f":"IFERROR(INDEX(SündmustePlaanur[],MATCH(DATEVALUE(DateVal)&Päevaplaan[[#This Row],[Kellaaeg]],LookUpDateAndTime,0),3),\"\")","v":""},null,null,{"$f":"IFERROR(INDEX(SündmustePlaanur[],MATCH($H$12&\"|\"&ROW(A5),SündmustePlaanur[AINUVÄÄRTUS (ARVUTATUD)],0),2),\"\")","v":""},{"$f":"IFERROR(INDEX(SündmustePlaanur[],MATCH($H$12&\"|\"&ROW(A5),SündmustePlaanur[AINUVÄÄRTUS (ARVUTATUD)],0),3),\"\")","v":""}]
[{"$nulls":4},{"$f":"Ajavahemikud!E13","v":"08:30:00"},{"$f":"IFERROR(INDEX(SündmustePlaanur[],MATCH(DATEVALUE(DateVal)&Päevaplaan[[#This Row],[Kellaaeg]],LookUpDateAndTime,0),3),\"\")","v":""},null,null,{"$f":"IFERROR(INDEX(SündmustePlaanur[],MATCH($H$12&\"|\"&ROW(A6),SündmustePlaanur[AINUVÄÄRTUS (ARVUTATUD)],0),2),\"\")","v":""},{"$f":"IFERROR(INDEX(SündmustePlaanur[],MATCH($H$12&\"|\"&ROW(A6),SündmustePlaanur[AINUVÄÄRTUS (ARVUTATUD)],0),3),\"\")","v":""}]
[null,"Kuu",null,null,{"$f":"Ajavahemikud!E14","v":"08:45:00"},{"$f":"IFERROR(INDEX(SündmustePlaanur[],MATCH(DATEVALUE(DateVal)&Päevaplaan[[#This Row],[Kellaaeg]],LookUpDateAndTime,0),3),\"\")","v":""},null,{"$f":"IFERROR(TEXT(DATEVALUE(DateVal)+3,\"dddd\"),\"\")","v":"pühapäev"},{"$f":"IFERROR(INDEX(SündmustePlaanur[],MATCH($H$18&\"|\"&ROW(A1),SündmustePlaanur[AINUVÄÄRTUS (ARVUTATUD)],0),2),\"\")","v":""},{"$f":"IFERROR(INDEX(SündmustePlaanur[],MATCH($H$18&\"|\"&ROW(A1),SündmustePlaanur[AINUVÄÄRTUS (ARVUTATUD)],0),3),\"\")","v":""}]
[{"$nulls":4},{"$f":"Ajavahemikud!E15","v":"09:00:00"},{"$f":"IFERROR(INDEX(SündmustePlaanur[],MATCH(DATEVALUE(DateVal)&Päevaplaan[[#This Row],[Kellaaeg]],LookUpDateAndTime,0),3),\"\")","v":""},null,{"$f":"IFERROR(TEXT(DATEVALUE(DateVal)+3,\"d\"),\"\")","v":"26"},{"$f":"IFERROR(INDEX(SündmustePlaanur[],MATCH($H$18&\"|\"&ROW(A2),SündmustePlaanur[AINUVÄÄRTUS (ARVUTATUD)],0),2),\"\")","v":""},{"$f":"IFERROR(INDEX(SündmustePlaanur[],MATCH($H$18&\"|\"&ROW(A2),SündmustePlaanur[AINUVÄÄRTUS (ARVUTATUD)],0),3),\"\")","v":""}]
[null,"Päev",null,null,{"$f":"Ajavahemikud!E16","v":"09:15:00"},{"$f":"IFERROR(INDEX(SündmustePlaanur[],MATCH(DATEVALUE(DateVal)&Päevaplaan[[#This Row],[Kellaaeg]],LookUpDateAndTime,0),3),\"\")","v":""},null,null,{"$f":"IFERROR(INDEX(SündmustePlaanur[],MATCH($H$18&\"|\"&ROW(A3),SündmustePlaanur[AINUVÄÄRTUS (ARVUTATUD)],0),2),\"\")","v":""},{"$f":"IFERROR(INDEX(SündmustePlaanur[],MATCH($H$18&\"|\"&ROW(A3),SündmustePlaanur[AINUVÄÄRTUS (ARVUTATUD)],0),3),\"\")","v":""}]
[{"$nulls":4},{"$f":"Ajavahemikud!E17","v":"09:30:00"},{"$f":"IFERROR(INDEX(SündmustePlaanur[],MATCH(DATEVALUE(DateVal)&Päevaplaan[[#This Row],[Kellaaeg]],LookUpDateAndTime,0),3),\"\")","v":""},null,{"$f":"IFERROR(DateVal+3,\"\")","v":"2022-06-26"},{"$f":"IFERROR(INDEX(SündmustePlaanur[],MATCH($H$18&\"|\"&ROW(A4),SündmustePlaanur[AINUVÄÄRTUS (ARVUTATUD)],0),2),\"\")","v":""},{"$f":"IFERROR(INDEX(SündmustePlaanur[],MATCH($H$18&\"|\"&ROW(A4),SündmustePlaanur[AINUVÄÄRTUS (ARVUTATUD)],0),3),\"\")","v":""}]
[null,"REDIGEERI AJAKAVA",null,null,{"$f":"Ajavahemikud!E18","v":"09:45:00"},{"$f":"IFERROR(INDEX(SündmustePlaanur[],MATCH(DATEVALUE(DateVal)&Päevaplaan[[#This Row],[Kellaaeg]],LookUpDateAndTime,0),3),\"\")","v":""},null,null,{"$f":"IFERROR(INDEX(SündmustePlaanur[],MATCH($H$18&\"|\"&ROW(A5),SündmustePlaanur[AINUVÄÄRTUS (ARVUTATUD)],0),2),\"\")","v":""},{"$f":"IFERROR(INDEX(SündmustePlaanur[],MATCH($H$18&\"|\"&ROW(A5),SündmustePlaanur[AINUVÄÄRTUS (ARVUTATUD)],0),3),\"\")","v":""}]
[{"$nulls":4},{"$f":"Ajavahemikud!E19","v":"10:00:00"},{"$f":"IFERROR(INDEX(SündmustePlaanur[],MATCH(DATEVALUE(DateVal)&Päevaplaan[[#This Row],[Kellaaeg]],LookUpDateAndTime,0),3),\"\")","v":"Paus"},null,null,{"$f":"IFERROR(INDEX(SündmustePlaanur[],MATCH($H$18&\"|\"&ROW(A6),SündmustePlaanur[AINUVÄÄRTUS (ARVUTATUD)],0),2),\"\")","v":""},{"$f":"IFERROR(INDEX(SündmustePlaanur[],MATCH($H$18&\"|\"&ROW(A6),SündmustePlaanur[AINUVÄÄRTUS (ARVUTATUD)],0),3),\"\")","v":""}]
[null,"Valige ajavahemike redigeerimiseks.",null,null,{"$f":"Ajavahemikud!E20","v":"10:15:00"},{"$f":"IFERROR(INDEX(SündmustePlaanur[],MATCH(DATEVALUE(DateVal)&Päevaplaan[[#This Row],[Kellaaeg]],LookUpDateAndTime,0),3),\"\")","v":""},null,{"$f":"IFERROR(TEXT(DATEVALUE(DateVal)+4,\"dddd\"),\"\")","v":"esmaspäev"},{"$f":"IFERROR(INDEX(SündmustePlaanur[],MATCH($H$24&\"|\"&ROW(A1),SündmustePlaanur[AINUVÄÄRTUS (ARVUTATUD)],0),2),\"\")","v":""},{"$f":"IFERROR(INDEX(SündmustePlaanur[],MATCH($H$24&\"|\"&ROW(A1),SündmustePlaanur[AINUVÄÄRTUS (ARVUTATUD)],0),3),\"\")","v":""}]
[{"$nulls":4},{"$f":"Ajavahemikud!E21","v":"10:30:00"},{"$f":"IFERROR(INDEX(SündmustePlaanur[],MATCH(DATEVALUE(DateVal)&Päevaplaan[[#This Row],[Kellaaeg]],LookUpDateAndTime,0),3),\"\")","v":""},null,{"$f":"IFERROR(TEXT(DATEVALUE(DateVal)+4,\"d\"),\"\")","v":"27"},{"$f":"IFERROR(INDEX(SündmustePlaanur[],MATCH($H$24&\"|\"&ROW(A2),SündmustePlaanur[AINUVÄÄRTUS (ARVUTATUD)],0),2),\"\")","v":""},{"$f":"IFERROR(INDEX(SündmustePlaanur[],MATCH($H$24&\"|\"&ROW(A2),SündmustePlaanur[AINUVÄÄRTUS (ARVUTATUD)],0),3),\"\")","v":""}]
[null,"Valige uue sündmuse lisamiseks.",null,null,{"$f":"Ajavahemikud!E22","v":"10:45:00"},{"$f":"IFERROR(INDEX(SündmustePlaanur[],MATCH(DATEVALUE(DateVal)&Päevaplaan[[#This Row],[Kellaaeg]],LookUpDateAndTime,0),3),\"\")","v":""},null,null,{"$f":"IFERROR(INDEX(SündmustePlaanur[],MATCH($H$24&\"|\"&ROW(A3),SündmustePlaanur[AINUVÄÄRTUS (ARVUTATUD)],0),2),\"\")","v":""},{"$f":"IFERROR(INDEX(SündmustePlaanur[],MATCH($H$24&\"|\"&ROW(A3),SündmustePlaanur[AINUVÄÄRTUS (ARVUTATUD)],0),3),\"\")","v":""}]
[{"$nulls":4},{"$f":"Ajavahemikud!E23","v":"11:00:00"},{"$f":"IFERROR(INDEX(SündmustePlaanur[],MATCH(DATEVALUE(DateVal)&Päevaplaan[[#This Row],[Kellaaeg]],LookUpDateAndTime,0),3),\"\")","v":""},null,{"$f":"IFERROR(DateVal+4,\"\")","v":"2022-06-27"},{"$f":"IFERROR(INDEX(SündmustePlaanur[],MATCH($H$24&\"|\"&ROW(A4),SündmustePlaanur[AINUVÄÄRTUS (ARVUTATUD)],0),2),\"\")","v":""},{"$f":"IFERROR(INDEX(SündmustePlaanur[],MATCH($H$24&\"|\"&ROW(A4),SündmustePlaanur[AINUVÄÄRTUS (ARVUTATUD)],0),3),\"\")","v":""}]
[null,"TÕSTA AJAKAVAS ESILE:",null,null,{"$f":"Ajavahemikud!E24","v":"11:15:00"},{"$f":"IFERROR(INDEX(SündmustePlaanur[],MATCH(DATEVALUE(DateVal)&Päevaplaan[[#This Row],[Kellaaeg]],LookUpDateAndTime,0),3),\"\")","v":""},null,null,{"$f":"IFERROR(INDEX(SündmustePlaanur[],MATCH($H$24&\"|\"&ROW(A5),SündmustePlaanur[AINUVÄÄRTUS (ARVUTATUD)],0),2),\"\")","v":""},{"$f":"IFERROR(INDEX(SündmustePlaanur[],MATCH($H$24&\"|\"&ROW(A5),SündmustePlaanur[AINUVÄÄRTUS (ARVUTATUD)],0),3),\"\")","v":""}]
[null,"Paus",null,null,{"$f":"Ajavahemikud!E25","v":"11:30:00"},{"$f":"IFERROR(INDEX(SündmustePlaanur[],MATCH(DATEVALUE(DateVal)&Päevaplaan[[#This Row],[Kellaaeg]],LookUpDateAndTime,0),3),\"\")","v":""},null,{"$f":"IFERROR(TEXT(DATEVALUE(DateVal)+5,\"dddd\"),\"\")","v":"teisipäev"},{"$f":"IFERROR(INDEX(SündmustePlaanur[],MATCH($H$29&\"|\"&ROW(A1),SündmustePlaanur[AINUVÄÄRTUS (ARVUTATUD)],0),2),\"\")","v":""},{"$f":"IFERROR(INDEX(SündmustePlaanur[],MATCH($H$29&\"|\"&ROW(A1),SündmustePlaanur[AINUVÄÄRTUS (ARVUTATUD)],0),3),\"\")","v":""}]
[{"$nulls":4},{"$f":"Ajavahemikud!E26","v":"11:45:00"},{"$f":"IFERROR(INDEX(SündmustePlaanur[],MATCH(DATEVALUE(DateVal)&Päevaplaan[[#This Row],[Kellaaeg]],LookUpDateAndTime,0),3),\"\")","v":""},null,{"$f":"IFERROR(TEXT(DATEVALUE(DateVal)+5,\"d\"),\"\")","v":"28"},{"$f":"IFERROR(INDEX(SündmustePlaanur[],MATCH($H$29&\"|\"&ROW(A2),SündmustePlaanur[AINUVÄÄRTUS (ARVUTATUD)],0),2),\"\")","v":""},{"$f":"IFERROR(INDEX(SündmustePlaanur[],MATCH($H$29&\"|\"&ROW(A2),SündmustePlaanur[AINUVÄÄRTUS (ARVUTATUD)],0),3),\"\")","v":""}]
[{"$nulls":4},{"$f":"Ajavahemikud!E27","v":"12:00:00"},{"$f":"IFERROR(INDEX(SündmustePlaanur[],MATCH(DATEVALUE(DateVal)&Päevaplaan[[#This Row],[Kellaaeg]],LookUpDateAndTime,0),3),\"\")","v":"Lõunasöök"},null,null,{"$f":"IFERROR(INDEX(SündmustePlaanur[],MATCH($H$29&\"|\"&ROW(A3),SündmustePlaanur[AINUVÄÄRTUS (ARVUTATUD)],0),2),\"\")","v":""},{"$f":"IFERROR(INDEX(SündmustePlaanur[],MATCH($H$29&\"|\"&ROW(A3),SündmustePlaanur[AINUVÄÄRTUS (ARVUTATUD)],0),3),\"\")","v":""}]
[{"$nulls":4},{"$f":"Ajavahemikud!E28","v":"12:15:00"},{"$f":"IFERROR(INDEX(SündmustePlaanur[],MATCH(DATEVALUE(DateVal)&Päevaplaan[[#This Row],[Kellaaeg]],LookUpDateAndTime,0),3),\"\")","v":""},null,{"$f":"IFERROR(DateVal+5,\"\")","v":"2022-06-28"},{"$f":"IFERROR(INDEX(SündmustePlaanur[],MATCH($H$29&\"|\"&ROW(A4),SündmustePlaanur[AINUVÄÄRTUS (ARVUTATUD)],0),2),\"\")","v":""},{"$f":"IFERROR(INDEX(SündmustePlaanur[],MATCH($H$29&\"|\"&ROW(A4),SündmustePlaanur[AINUVÄÄRTUS (ARVUTATUD)],0),3),\"\")","v":""}]
[{"$nulls":4},{"$f":"Ajavahemikud!E29","v":"12:30:00"},{"$f":"IFERROR(INDEX(SündmustePlaanur[],MATCH(DATEVALUE(DateVal)&Päevaplaan[[#This Row],[Kellaaeg]],LookUpDateAndTime,0),3),\"\")","v":""},null,null,{"$f":"IFERROR(INDEX(SündmustePlaanur[],MATCH($H$29&\"|\"&ROW(A5),SündmustePlaanur[AINUVÄÄRTUS (ARVUTATUD)],0),2),\"\")","v":""},{"$f":"IFERROR(INDEX(SündmustePlaanur[],MATCH($H$29&\"|\"&ROW(A5),SündmustePlaanur[AINUVÄÄRTUS (ARVUTATUD)],0),3),\"\")","v":""}]
[{"$nulls":4},{"$f":"Ajavahemikud!E30","v":"12:45:00"},{"$f":"IFERROR(INDEX(SündmustePlaanur[],MATCH(DATEVALUE(DateVal)&Päevaplaan[[#This Row],[Kellaaeg]],LookUpDateAndTime,0),3),\"\")","v":""},null,{"$f":"IFERROR(TEXT(DATEVALUE(DateVal)+6,\"dddd\"),\"\")","v":"kolmapäev"},{"$f":"IFERROR(INDEX(SündmustePlaanur[],MATCH($H$34&\"|\"&ROW(A1),SündmustePlaanur[AINUVÄÄRTUS (ARVUTATUD)],0),2),\"\")","v":""},{"$f":"IFERROR(INDEX(SündmustePlaanur[],MATCH($H$34&\"|\"&ROW(A1),SündmustePlaanur[AINUVÄÄRTUS (ARVUTATUD)],0),3),\"\")","v":""}]
[{"$nulls":4},{"$f":"Ajavahemikud!E31","v":"13:00:00"},{"$f":"IFERROR(INDEX(SündmustePlaanur[],MATCH(DATEVALUE(DateVal)&Päevaplaan[[#This Row],[Kellaaeg]],LookUpDateAndTime,0),3),\"\")","v":""},null,{"$f":"IFERROR(TEXT(DATEVALUE(DateVal)+6,\"d\"),\"\")","v":"29"},{"$f":"IFERROR(INDEX(SündmustePlaanur[],MATCH($H$34&\"|\"&ROW(A2),SündmustePlaanur[AINUVÄÄRTUS (ARVUTATUD)],0),2),\"\")","v":""},{"$f":"IFERROR(INDEX(SündmustePlaanur[],MATCH($H$34&\"|\"&ROW(A2),SündmustePlaanur[AINUVÄÄRTUS (ARVUTATUD)],0),3),\"\")","v":""}]
[{"$nulls":4},{"$f":"Ajavahemikud!E32","v":"13:15:00"},{"$f":"IFERROR(INDEX(SündmustePlaanur[],MATCH(DATEVALUE(DateVal)&Päevaplaan[[#This Row],[Kellaaeg]],LookUpDateAndTime,0),3),\"\")","v":""},null,null,{"$f":"IFERROR(INDEX(SündmustePlaanur[],MATCH($H$34&\"|\"&ROW(A3),SündmustePlaanur[AINUVÄÄRTUS (ARVUTATUD)],0),2),\"\")","v":""},{"$f":"IFERROR(INDEX(SündmustePlaanur[],MATCH($H$34&\"|\"&ROW(A3),SündmustePlaanur[AINUVÄÄRTUS (ARVUTATUD)],0),3),\"\")","v":""}]
[{"$nulls":4},{"$f":"Ajavahemikud!E33","v":"13:30:00"},{"$f":"IFERROR(INDEX(SündmustePlaanur[],MATCH(DATEVALUE(DateVal)&Päevaplaan[[#This Row],[Kellaaeg]],LookUpDateAndTime,0),3),\"\")","v":"Helista ettevõttesse"},null,{"$f":"IFERROR(DateVal+6,\"\")","v":"2022-06-29"},{"$f":"IFERROR(INDEX(SündmustePlaanur[],MATCH($H$34&\"|\"&ROW(A4),SündmustePlaanur[AINUVÄÄRTUS (ARVUTATUD)],0),2),\"\")","v":""},{"$f":"IFERROR(INDEX(SündmustePlaanur[],MATCH($H$34&\"|\"&ROW(A4),SündmustePlaanur[AINUVÄÄRTUS (ARVUTATUD)],0),3),\"\")","v":""}]
[{"$nulls":4},{"$f":"Ajavahemikud!E34","v":"13:45:00"},{"$f":"IFERROR(INDEX(SündmustePlaanur[],MATCH(DATEVALUE(DateVal)&Päevaplaan[[#This Row],[Kellaaeg]],LookUpDateAndTime,0),3),\"\")","v":""},null,null,{"$f":"IFERROR(INDEX(SündmustePlaanur[],MATCH($H$34&\"|\"&ROW(A5),SündmustePlaanur[AINUVÄÄRTUS (ARVUTATUD)],0),2),\"\")","v":""},{"$f":"IFERROR(INDEX(SündmustePlaanur[],MATCH($H$34&\"|\"&ROW(A5),SündmustePlaanur[AINUVÄÄRTUS (ARVUTATUD)],0),3),\"\")","v":""}]
[{"$nulls":4},{"$f":"Ajavahemikud!E35","v":"14:00:00"},{"$f":"IFERROR(INDEX(SündmustePlaanur[],MATCH(DATEVALUE(DateVal)&Päevaplaan[[#This Row],[Kellaaeg]],LookUpDateAndTime,0),3),\"\")","v":""}]
[{"$nulls":4},{"$f":"Ajavahemikud!E36","v":"14:15:00"},{"$f":"IFERROR(INDEX(SündmustePlaanur[],MATCH(DATEVALUE(DateVal)&Päevaplaan[[#This Row],[Kellaaeg]],LookUpDateAndTime,0),3),\"\")","v":""}]
[{"$nulls":4},{"$f":"Ajavahemikud!E37","v":"14:30:00"},{"$f":"IFERROR(INDEX(SündmustePlaanur[],MATCH(DATEVALUE(DateVal)&Päevaplaan[[#This Row],[Kellaaeg]],LookUpDateAndTime,0),3),\"\")","v":""}]
[{"$nulls":4},{"$f":"Ajavahemikud!E38","v":"14:45:00"},{"$f":"IFERROR(INDEX(SündmustePlaanur[],MATCH(DATEVALUE(DateVal)&Päevaplaan[[#This Row],[Kellaaeg]],LookUpDateAndTime,0),3),\"\")","v":""}]
[{"$nulls":4},{"$f":"Ajavahemikud!E39","v":"15:00:00"},{"$f":"IFERROR(INDEX(SündmustePlaanur[],MATCH(DATEVALUE(DateVal)&Päevaplaan[[#This Row],[Kellaaeg]],LookUpDateAndTime,0),3),\"\")","v":"Paus"}]
[{"$nulls":4},{"$f":"Ajavahemikud!E40","v":"15:15:00"},{"$f":"IFERROR(INDEX(SündmustePlaanur[],MATCH(DATEVALUE(DateVal)&Päevaplaan[[#This Row],[Kellaaeg]],LookUpDateAndTime,0),3),\"\")","v":""}]
[{"$nulls":4},{"$f":"Ajavahemikud!E41","v":"15:30:00"},{"$f":"IFERROR(INDEX(SündmustePlaanur[],MATCH(DATEVALUE(DateVal)&Päevaplaan[[#This Row],[Kellaaeg]],LookUpDateAndTime,0),3),\"\")","v":""}]
[{"$nulls":4},{"$f":"Ajavahemikud!E42","v":"15:45:00"},{"$f":"IFERROR(INDEX(SündmustePlaanur[],MATCH(DATEVALUE(DateVal)&Päevaplaan[[#This Row],[Kellaaeg]],LookUpDateAndTime,0),3),\"\")","v":""}]
[{"$nulls":4},{"$f":"Ajavahemikud!E43","v":"16:00:00"},{"$f":"IFERROR(INDEX(SündmustePlaanur[],MATCH(DATEVALUE(DateVal)&Päevaplaan[[#This Row],[Kellaaeg]],LookUpDateAndTime,0),3),\"\")","v":""}]
[{"$nulls":4},{"$f":"Ajavahemikud!E44","v":"16:15:00"},{"$f":"IFERROR(INDEX(SündmustePlaanur[],MATCH(DATEVALUE(DateVal)&Päevaplaan[[#This Row],[Kellaaeg]],LookUpDateAndTime,0),3),\"\")","v":""}]
[{"$nulls":4},{"$f":"Ajavahemikud!E45","v":"16:30:00"},{"$f":"IFERROR(INDEX(SündmustePlaanur[],MATCH(DATEVALUE(DateVal)&Päevaplaan[[#This Row],[Kellaaeg]],LookUpDateAndTime,0),3),\"\")","v":""}]
[{"$nulls":4},{"$f":"Ajavahemikud!E46","v":"16:45:00"},{"$f":"IFERROR(INDEX(SündmustePlaanur[],MATCH(DATEVALUE(DateVal)&Päevaplaan[[#This Row],[Kellaaeg]],LookUpDateAndTime,0),3),\"\")","v":""}]
[{"$nulls":4},{"$f":"Ajavahemikud!E47","v":"17:00:00"},{"$f":"IFERROR(INDEX(SündmustePlaanur[],MATCH(DATEVALUE(DateVal)&Päevaplaan[[#This Row],[Kellaaeg]],LookUpDateAndTime,0),3),\"\")","v":"Koju"}]
[{"$nulls":4},{"$f":"Ajavahemikud!E48","v":"17:15:00"},{"$f":"IFERROR(INDEX(SündmustePlaanur[],MATCH(DATEVALUE(DateVal)&Päevaplaan[[#This Row],[Kellaaeg]],LookUpDateAndTime,0),3),\"\")","v":""}]
[{"$nulls":4},{"$f":"Ajavahemikud!E49","v":"17:30:00"},{"$f":"IFERROR(INDEX(SündmustePlaanur[],MATCH(DATEVALUE(DateVal)&Päevaplaan[[#This Row],[Kellaaeg]],LookUpDateAndTime,0),3),\"\")","v":""}]
[{"$nulls":4},{"$f":"Ajavahemikud!E50","v":"17:45:00"},{"$f":"IFERROR(INDEX(SündmustePlaanur[],MATCH(DATEVALUE(DateVal)&Päevaplaan[[#This Row],[Kellaaeg]],LookUpDateAndTime,0),3),\"\")","v":""}]
[{"$nulls":4},{"$f":"Ajavahemikud!E51","v":"18:00:00"},{"$f":"IFERROR(INDEX(SündmustePlaanur[],MATCH(DATEVALUE(DateVal)&Päevaplaan[[#This Row],[Kellaaeg]],LookUpDateAndTime,0),3),\"\")","v":"Jalgpallitreening"}]
[{"$nulls":4},{"$f":"Ajavahemikud!E52","v":"18:15:00"},{"$f":"IFERROR(INDEX(SündmustePlaanur[],MATCH(DATEVALUE(DateVal)&Päevaplaan[[#This Row],[Kellaaeg]],LookUpDateAndTime,0),3),\"\")","v":""}]
[{"$nulls":4},{"$f":"Ajavahemikud!E53","v":"18:30:00"},{"$f":"IFERROR(INDEX(SündmustePlaanur[],MATCH(DATEVALUE(DateVal)&Päevaplaan[[#This Row],[Kellaaeg]],LookUpDateAndTime,0),3),\"\")","v":""}]
[{"$nulls":4},{"$f":"Ajavahemikud!E54","v":"18:45:00"},{"$f":"IFERROR(INDEX(SündmustePlaanur[],MATCH(DATEVALUE(DateVal)&Päevaplaan[[#This Row],[Kellaaeg]],LookUpDateAndTime,0),3),\"\")","v":""}]
[{"$nulls":4},{"$f":"Ajavahemikud!E55","v":"19:00:00"},{"$f":"IFERROR(INDEX(SündmustePlaanur[],MATCH(DATEVALUE(DateVal)&Päevaplaan[[#This Row],[Kellaaeg]],LookUpDateAndTime,0),3),\"\")","v":""}]
[{"$nulls":4},{"$f":"Ajavahemikud!E56","v":"19:15:00"},{"$f":"IFERROR(INDEX(SündmustePlaanur[],MATCH(DATEVALUE(DateVal)&Päevaplaan[[#This Row],[Kellaaeg]],LookUpDateAndTime,0),3),\"\")","v":""}]
[{"$nulls":4},{"$f":"Ajavahemikud!E57","v":"19:30:00"},{"$f":"IFERROR(INDEX(SündmustePlaanur[],MATCH(DATEVALUE(DateVal)&Päevaplaan[[#This Row],[Kellaaeg]],LookUpDateAndTime,0),3),\"\")","v":""}]
[{"$nulls":4},{"$f":"Ajavahemikud!E58","v":"19:45:00"},{"$f":"IFERROR(INDEX(SündmustePlaanur[],MATCH(DATEVALUE(DateVal)&Päevaplaan[[#This Row],[Kellaaeg]],LookUpDateAndTime,0),3),\"\")","v":""}]
[{"$nulls":4},{"$f":"Ajavahemikud!E59","v":"20:00:00"},{"$f":"IFERROR(INDEX(SündmustePlaanur[],MATCH(DATEVALUE(DateVal)&Päevaplaan[[#This Row],[Kellaaeg]],LookUpDateAndTime,0),3),\"\")","v":""}]
[{"$nulls":4},{"$f":"Ajavahemikud!E60","v":"20:15:00"},{"$f":"IFERROR(INDEX(SündmustePlaanur[],MATCH(DATEVALUE(DateVal)&Päevaplaan[[#This Row],[Kellaaeg]],LookUpDateAndTime,0),3),\"\")","v":""}]
[{"$nulls":4},{"$f":"Ajavahemikud!E61","v":"20:30:00"},{"$f":"IFERROR(INDEX(SündmustePlaanur[],MATCH(DATEVALUE(DateVal)&Päevaplaan[[#This Row],[Kellaaeg]],LookUpDateAndTime,0),3),\"\")","v":""}]
[{"$nulls":4},{"$f":"Ajavahemikud!E62","v":"20:45:00"},{"$f":"IFERROR(INDEX(SündmustePlaanur[],MATCH(DATEVALUE(DateVal)&Päevaplaan[[#This Row],[Kellaaeg]],LookUpDateAndTime,0),3),\"\")","v":""}]
[{"$nulls":4},{"$f":"Ajavahemikud!E63","v":"21:00:00"},{"$f":"IFERROR(INDEX(SündmustePlaanur[],MATCH(DATEVALUE(DateVal)&Päevaplaan[[#This Row],[Kellaaeg]],LookUpDateAndTime,0),3),\"\")","v":""}]
[{"$nulls":4},{"$f":"Ajavahemikud!E64","v":""},{"$f":"IFERROR(INDEX(SündmustePlaanur[],MATCH(DATEVALUE(DateVal)&Päevaplaan[[#This Row],[Kellaaeg]],LookUpDateAndTime,0),3),\"\")","v":""}]
[{"$nulls":4},{"$f":"Ajavahemikud!E65","v":""},{"$f":"IFERROR(INDEX(SündmustePlaanur[],MATCH(DATEVALUE(DateVal)&Päevaplaan[[#This Row],[Kellaaeg]],LookUpDateAndTime,0),3),\"\")","v":""}]
[{"$nulls":4},{"$f":"Ajavahemikud!E66","v":""},{"$f":"IFERROR(INDEX(SündmustePlaanur[],MATCH(DATEVALUE(DateVal)&Päevaplaan[[#This Row],[Kellaaeg]],LookUpDateAndTime,0),3),\"\")","v":""}]
[{"$nulls":4},{"$f":"Ajavahemikud!E67","v":""},{"$f":"IFERROR(INDEX(SündmustePlaanur[],MATCH(DATEVALUE(DateVal)&Päevaplaan[[#This Row],[Kellaaeg]],LookUpDateAndTime,0),3),\"\")","v":""}]
[{"$nulls":4},{"$f":"Ajavahemikud!E68","v":""},{"$f":"IFERROR(INDEX(SündmustePlaanur[],MATCH(DATEVALUE(DateVal)&Päevaplaan[[#This Row],[Kellaaeg]],LookUpDateAndTime,0),3),\"\")","v":""}]
[{"$nulls":4},{"$f":"Ajavahemikud!E69","v":""},{"$f":"IFERROR(INDEX(SündmustePlaanur[],MATCH(DATEVALUE(DateVal)&Päevaplaan[[#This Row],[Kellaaeg]],LookUpDateAndTime,0),3),\"\")","v":""}]
[{"$nulls":4},{"$f":"Ajavahemikud!E70","v":""},{"$f":"IFERROR(INDEX(SündmustePlaanur[],MATCH(DATEVALUE(DateVal)&Päevaplaan[[#This Row],[Kellaaeg]],LookUpDateAndTime,0),3),\"\")","v":""}]
[{"$nulls":4},{"$f":"Ajavahemikud!E71","v":""},{"$f":"IFERROR(INDEX(SündmustePlaanur[],MATCH(DATEVALUE(DateVal)&Päevaplaan[[#This Row],[Kellaaeg]],LookUpDateAndTime,0),3),\"\")","v":""}]
[{"$nulls":4},{"$f":"Ajavahemikud!E72","v":""},{"$f":"IFERROR(INDEX(SündmustePlaanur[],MATCH(DATEVALUE(DateVal)&Päevaplaan[[#This Row],[Kellaaeg]],LookUpDateAndTime,0),3),\"\")","v":""}]
[{"$nulls":4},{"$f":"Ajavahemikud!E73","v":""},{"$f":"IFERROR(INDEX(SündmustePlaanur[],MATCH(DATEVALUE(DateVal)&Päevaplaan[[#This Row],[Kellaaeg]],LookUpDateAndTime,0),3),\"\")","v":""}]
[{"$nulls":4},{"$f":"Ajavahemikud!E74","v":""},{"$f":"IFERROR(INDEX(SündmustePlaanur[],MATCH(DATEVALUE(DateVal)&Päevaplaan[[#This Row],[Kellaaeg]],LookUpDateAndTime,0),3),\"\")","v":""}]
[{"$nulls":4},{"$f":"Ajavahemikud!E75","v":""},{"$f":"IFERROR(INDEX(SündmustePlaanur[],MATCH(DATEVALUE(DateVal)&Päevaplaan[[#This Row],[Kellaaeg]],LookUpDateAndTime,0),3),\"\")","v":""}]

{"sheet":"Sündmuste plaanur","index":1,"n_rows":15,"n_cols":8,"rows_kept":15,"merged":[[0,1,0,2],[1,1,4,2],[5,1,6,2],[7,1,7,2]]}
[null,"Sündmuste plaanur"]
[null,{"$f":"DAY(DateVal)","v":23},null,null,"KUUPÄEV","KELLAAEG","KIRJELDUS","AINUVÄÄRTUS (ARVUTATUD)"]
[{"$nulls":4},{"$f":"TODAY()","v":"2022-06-23"},"06:00:00","Ärkamine",{"$f":"SündmustePlaanur[[#This Row],[KUUPÄEV]]&\"|\"&COUNTIF($E$3:E3,E3)","v":"44735|1"}]
[{"$nulls":4},{"$f":"TODAY()","v":"2022-06-23"},"06:30:00","Dušš",{"$f":"SündmustePlaanur[[#This Row],[KUUPÄEV]]&\"|\"&COUNTIF($E$3:E4,E4)","v":"44735|2"}]
[{"$nulls":4},"2022-06-23","07:30:00","Tööleminek",{"$f":"SündmustePlaanur[[#This Row],[KUUPÄEV]]&\"|\"&COUNTIF($E$3:E5,E5)","v":"44735|3"}]
[null,{"$f":"TEXT(DateVal,\"dddd\")","v":"neljapäev"},null,null,"2022-06-23","08:00:00","Vahetuse algus",{"$f":"SündmustePlaanur[[#This Row],[KUUPÄEV]]&\"|\"&COUNTIF($E$3:E6,E6)","v":"44735|4"}]
[{"$nulls":4},"2022-06-23","10:00:00","Paus",{"$f":"SündmustePlaanur[[#This Row],[KUUPÄEV]]&\"|\"&COUNTIF($E$3:E7,E7)","v":"44735|5"}]
[null,{"$f":"DateVal","v":"23. JUUNI 2022"},null,null,"2022-06-23","12:00:00","Lõunasöök",{"$f":"SündmustePlaanur[[#This Row],[KUUPÄEV]]&\"|\"&COUNTIF($E$3:E8,E8)","v":"44735|6"}]
[{"$nulls":4},"2022-06-23","13:00:00","Tagasi tööle",{"$f":"SündmustePlaanur[[#This Row],[KUUPÄEV]]&\"|\"&COUNTIF($E$3:E9,E9)","v":"44735|7"}]
[null,"Valige ajavahemike redigeerimiseks.",null,null,"2022-06-23","13:30:00","Helista ettevõttesse",{"$f":"SündmustePlaanur[[#This Row],[KUUPÄEV]]&\"|\"&COUNTIF($E$3:E10,E10)","v":"44735|8"}]
[{"$nulls":4},"2022-06-23","15:00:00","Paus",{"$f":"SündmustePlaanur[[#This Row],[KUUPÄEV]]&\"|\"&COUNTIF($E$3:E11,E11)","v":"44735|9"}]
[null,"Valige päevaplaani kuvamiseks.",null,null,"2022-06-23","17:00:00","Koju",{"$f":"SündmustePlaanur[[#This Row],[KUUPÄEV]]&\"|\"&COUNTIF($E$3:E12,E12)","v":"44735|10"}]
[{"$nulls":4},"2022-06-23","18:00:00","Jalgpallitreening",{"$f":"SündmustePlaanur[[#This Row],[KUUPÄEV]]&\"|\"&COUNTIF($E$3:E13,E13)","v":"44735|11"}]
[{"$nulls":4},{"$f":"TODAY()+1","v":"2022-06-24"},"06:30:00","Hommikusöök",{"$f":"SündmustePlaanur[[#This Row],[KUUPÄEV]]&\"|\"&COUNTIF($E$3:E15,E14)","v":"44736|2"}]
[{"$nulls":4},{"$f":"TODAY()+1","v":"2022-06-24"},"07:30:00","Tööleminek",{"$f":"SündmustePlaanur[[#This Row],[KUUPÄEV]]&\"|\"&COUNTIF($E$3:E15,E15)","v":"44736|2"}]

{"sheet":"Ajavahemikud","index":2,"n_rows":75,"n_cols":5,"rows_kept":75,"merged":[[0,1,0,2],[1,1,1,2],[9,1,9,2]]}
[null,"Ajavahemikud"]
[null,"REDIGEERI AJATABELIS",null,null,"Kellaaeg"]
[{"$nulls":4},{"$f":"Alguskellaaeg","v":"06:00:00"}]
[null,"Alguskellaaeg","06:00:00",null,{"$f":"IFERROR(IF($E3+Increment>Lõppkellaaeg,\"\",$E3+Increment),\"\")","v":"06:15:00"}]
[{"$nulls":4},"06:30:00"]
[null,"Vahemik","15 MIN",null,"06:45:00"]
[{"$nulls":4},"07:00:00"]
[null,"Lõppkellaaeg","21:00:00",null,"07:15:00"]
[{"$nulls":4},"07:30:00"]
[null,"KUVA AJAKAVA",null,null,"07:45:00"]
[{"$nulls":4},"08:00:00"]
[null,"Valige päevaplaani kuvamiseks.",null,null,"08:15:00"]
[{"$nulls":4},"08:30:00"]
[null,"Valige uue sündmuse lisamiseks.",null,null,"08:45:00"]
[{"$nulls":4},"09:00:00"]
[{"$nulls":4},"09:15:00"]
[{"$nulls":4},"09:30:00"]
[{"$nulls":4},"09:45:00"]
[{"$nulls":4},"10:00:00"]
[{"$nulls":4},"10:15:00"]
[{"$nulls":4},"10:30:00"]
[{"$nulls":4},"10:45:00"]
[{"$nulls":4},"11:00:00"]
[{"$nulls":4},"11:15:00"]
[{"$nulls":4},"11:30:00"]
[{"$nulls":4},"11:45:00"]
[{"$nulls":4},"12:00:00"]
[{"$nulls":4},"12:15:00"]
[{"$nulls":4},"12:30:00"]
[{"$nulls":4},"12:45:00"]
[{"$nulls":4},"13:00:00"]
[{"$nulls":4},"13:15:00"]
[{"$nulls":4},"13:30:00"]
[{"$nulls":4},"13:45:00"]
[{"$nulls":4},"14:00:00"]
[{"$nulls":4},{"$f":"IFERROR(IF($E35+Increment>Lõppkellaaeg,\"\",$E35+Increment),\"\")","v":"14:15:00"}]
[{"$nulls":4},"14:30:00"]
[{"$nulls":4},"14:45:00"]
[{"$nulls":4},"15:00:00"]
[{"$nulls":4},"15:15:00"]
[{"$nulls":4},"15:30:00"]
[{"$nulls":4},"15:45:00"]
[{"$nulls":4},"16:00:00"]
[{"$nulls":4},"16:15:00"]
[{"$nulls":4},"16:30:00"]
[{"$nulls":4},"16:45:00"]
[{"$nulls":4},"17:00:00"]
[{"$nulls":4},"17:15:00"]
[{"$nulls":4},"17:30:00"]
[{"$nulls":4},"17:45:00"]
[{"$nulls":4},"18:00:00"]
[{"$nulls":4},"18:15:00"]
[{"$nulls":4},"18:30:00"]
[{"$nulls":4},"18:45:00"]
[{"$nulls":4},"19:00:00"]
[{"$nulls":4},"19:15:00"]
[{"$nulls":4},"19:30:00"]
[{"$nulls":4},"19:45:00"]
[{"$nulls":4},"20:00:00"]
[{"$nulls":4},"20:15:00"]
[{"$nulls":4},"20:30:00"]
[{"$nulls":4},"20:45:00"]
[{"$nulls":4},"21:00:00"]
[{"$nulls":4},""]
[{"$nulls":4},""]
[{"$nulls":4},""]
[{"$nulls":4},""]
[{"$nulls":4},{"$f":"IFERROR(IF($E67+Increment>Lõppkellaaeg,\"\",$E67+Increment),\"\")","v":""}]
[{"$nulls":4},""]
[{"$nulls":4},""]
[{"$nulls":4},""]
[{"$nulls":4},""]
[{"$nulls":4},""]
[{"$nulls":4},""]
[{"$nulls":4},""]